[Event "*** Titled Tuesday Blitz"]
[Site "Chess.com"]
[Date "2018.12.04"]
[Round "7"]
[White "severomorskij"]
[Black "Thjop"]
[Result "1-0"]
[WhiteElo "2757"]
[BlackElo "2675"]
[TimeControl "180+2"]
[EndTime "14:38:24 PST"]
[Termination "severomorskij won by resignation"]

1. d4 {[%clk 0:03:01.9]} 1... Nf6 {[%clk 0:03:00.5]} 2. c4 {[%clk 0:03:01.7]}
2... g6 {[%clk 0:03:01.7]} 3. Nc3 {[%clk 0:03:02.1]} 3... Bg7 {[%clk 0:03:02.7]}
4. e4 {[%clk 0:03:02.6]} 4... d6 {[%clk 0:03:03.1]} 5. Bd3 {[%clk 0:03:04.1]}
5... O-O {[%clk 0:03:03.5]} 6. Nge2 {[%clk 0:03:05.7]} 6... e5 {[%clk
0:03:03.9]} 7. d5 {[%clk 0:03:06.1]} 7... a5 {[%clk 0:03:04.7]} 8. O-O {[%clk
0:03:06.4]} 8... Na6 {[%clk 0:03:04.9]} 9. Bg5 {[%clk 0:02:59.7]} 9... h6 {[%clk
0:02:53.4]} 10. Bh4 {[%clk 0:03:00.7]} 10... g5 {[%clk 0:02:42.8]} 11. Bg3
{[%clk 0:03:01.6]} 11... Nh5 {[%clk 0:02:44.3]} 12. a3 {[%clk 0:02:56.8]} 12...
Bd7 {[%clk 0:02:39.9]} 13. Bc2 {[%clk 0:02:50.8]} 13... Nf4 {[%clk 0:02:31.1]}
14. f3 {[%clk 0:02:48.6]} 14... f5 {[%clk 0:01:52]} 15. exf5 {[%clk 0:02:46.5]}
15... Bxf5 {[%clk 0:01:52.4]} 16. Bxf5 {[%clk 0:02:46.8]} 16... Rxf5 {[%clk
0:01:54.3]} 17. Bf2 {[%clk 0:02:41.8]} 17... Rf8 {[%clk 0:01:48.4]} 18. Ng3
{[%clk 0:02:33.2]} 18... b6 {[%clk 0:01:44.8]} 19. Qc2 {[%clk 0:02:24.4]} 19...
h5 {[%clk 0:01:36.3]} 20. Nge4 {[%clk 0:02:06.6]} 20... Bh6 {[%clk 0:01:32.2]}
21. Kh1 {[%clk 0:02:02.6]} 21... Qd7 {[%clk 0:01:31.3]} 22. Nb5 {[%clk
0:01:38.5]} 22... Rf7 {[%clk 0:01:20.2]} 23. b4 {[%clk 0:01:35.8]} 23... g4
{[%clk 0:01:13.6]} 24. Bh4 {[%clk 0:01:32.5]} 24... Raf8 {[%clk 0:01:06.5]} 25.
Rab1 {[%clk 0:01:16.1]} 25... axb4 {[%clk 0:01:01.9]} 26. axb4 {[%clk
0:01:16.4]} 26... Nxd5 {[%clk 0:00:48.9]} 27. Nbxd6 {[%clk 0:00:42.2]} 27... Ne3
{[%clk 0:00:32.9]} 28. Nxf7 {[%clk 0:00:41.7]} 28... Rxf7 {[%clk 0:00:28.4]} 29.
Qb3 {[%clk 0:00:13.5]} 29... Nxf1 {[%clk 0:00:26.2]} 30. Rxf1 {[%clk 0:00:15.4]}
30... Qd4 {[%clk 0:00:20.4]} 31. Rd1 {[%clk 0:00:09.7]} 31... Qe3 {[%clk
0:00:15.2]} 32. Qxe3 {[%clk 0:00:03.9]} 32... Bxe3 {[%clk 0:00:17.1]} 33. Rd3
{[%clk 0:00:04.3]} 33... Bh6 {[%clk 0:00:14.5]} 34. Nf6+ {[%clk 0:00:04]} 34...
Kh8 {[%clk 0:00:15.6]} 35. Rd8+ {[%clk 0:00:04.3]} 35... Bf8 {[%clk 0:00:16.4]}
36. Nd7 {[%clk 0:00:04.9]} 36... Kg7 {[%clk 0:00:17.2]} 37. Nxe5 {[%clk
0:00:05.5]} 37... Rf5 {[%clk 0:00:16.1]} 38. Rd7+ {[%clk 0:00:06.7]} 38... Kg8
{[%clk 0:00:16.7]} 39. Bg3 {[%clk 0:00:05.6]} 39... gxf3 {[%clk 0:00:17.2]} 40.
gxf3 {[%clk 0:00:06.5]} 40... Nxb4 {[%clk 0:00:18.3]} 41. Ng6 {[%clk 0:00:06.1]}
41... Bd6 {[%clk 0:00:18.6]} 42. Bxd6 {[%clk 0:00:06.5]} 42... cxd6 {[%clk
0:00:17.7]} 43. Ne7+ {[%clk 0:00:07.7]} 43... Kf8 {[%clk 0:00:19.1]} 44. Nxf5
{[%clk 0:00:08.7]} 44... Ke8 {[%clk 0:00:20.5]} 45. Rxd6 {[%clk 0:00:09.9]} 1-0

[Event "*** Titled Tuesday Blitz"]
[Site "Chess.com"]
[Date "2018.12.04"]
[Round "7"]
[White "MatyChess1"]
[Black "arctic_t00"]
[Result "1-0"]
[WhiteElo "2524"]
[BlackElo "2389"]
[TimeControl "180+2"]
[EndTime "14:38:24 PST"]
[Termination "MatyChess1 won by resignation"]

1. e4 {[%clk 0:03:01.9]} 1... c5 {[%clk 0:02:58.4]} 2. Nf3 {[%clk 0:03:01.5]}
2... d6 {[%clk 0:02:59.1]} 3. Bc4 {[%clk 0:03:01.6]} 3... e6 {[%clk 0:02:58.9]}
4. O-O {[%clk 0:03:02.2]} 4... Nf6 {[%clk 0:02:59.9]} 5. Re1 {[%clk 0:03:02.8]}
5... Nc6 {[%clk 0:03:00.5]} 6. c3 {[%clk 0:03:03.4]} 6... Be7 {[%clk 0:02:54]}
7. Bb3 {[%clk 0:03:00.3]} 7... O-O {[%clk 0:02:52.7]} 8. d4 {[%clk 0:03:00.4]}
8... cxd4 {[%clk 0:02:42.5]} 9. cxd4 {[%clk 0:03:00.9]} 9... d5 {[%clk
0:02:43.2]} 10. e5 {[%clk 0:02:57.4]} 10... Ne4 {[%clk 0:02:43.8]} 11. Bc2
{[%clk 0:02:30.8]} 11... Nb4 {[%clk 0:02:38.5]} 12. Bxe4 {[%clk 0:02:19.9]}
12... dxe4 {[%clk 0:02:39.7]} 13. Rxe4 {[%clk 0:02:21.8]} 13... b6 {[%clk
0:02:40.4]} 14. Rg4 {[%clk 0:02:22.6]} 14... Kh8 {[%clk 0:02:27.6]} 15. Nc3
{[%clk 0:02:16.2]} 15... Bb7 {[%clk 0:02:24.7]} 16. h4 {[%clk 0:02:13.6]} 16...
Rc8 {[%clk 0:02:16.2]} 17. Bg5 {[%clk 0:02:07.8]} 17... f6 {[%clk 0:01:54.3]}
18. exf6 {[%clk 0:02:07.1]} 18... gxf6 {[%clk 0:01:56.2]} 19. Bh6 {[%clk
0:02:07.2]} 19... Rg8 {[%clk 0:01:57.1]} 20. Ne1 {[%clk 0:01:42.2]} 20... f5
{[%clk 0:01:43.5]} 21. Rxg8+ {[%clk 0:01:41.4]} 21... Qxg8 {[%clk 0:01:45.4]}
22. Qe2 {[%clk 0:01:34.9]} 22... Bf6 {[%clk 0:01:25.1]} 23. Bg5 {[%clk
0:01:28.5]} 23... Bxg5 {[%clk 0:00:47.9]} 24. hxg5 {[%clk 0:01:28.6]} 24... Nd5
{[%clk 0:00:40.9]} 25. Qe5+ {[%clk 0:01:21.8]} 25... Qg7 {[%clk 0:00:42.2]} 26.
Qxe6 {[%clk 0:01:18.9]} 26... Nxc3 {[%clk 0:00:43]} 27. bxc3 {[%clk 0:01:18.5]}
27... Rxc3 {[%clk 0:00:43.7]} 28. d5 {[%clk 0:01:08]} 28... Rc7 {[%clk
0:00:17.4]} 29. d6 {[%clk 0:00:58.5]} 29... Rc8 {[%clk 0:00:09.1]} 30. Rd1
{[%clk 0:00:56.2]} 30... Rd8 {[%clk 0:00:09.5]} 31. Qxf5 {[%clk 0:00:47.2]}
31... Bc8 {[%clk 0:00:08.8]} 32. Qf4 {[%clk 0:00:39]} 32... Kg8 {[%clk
0:00:09.1]} 33. Nf3 {[%clk 0:00:38.9]} 33... Rf8 {[%clk 0:00:08.7]} 34. Qc4+
{[%clk 0:00:38.9]} 34... Kh8 {[%clk 0:00:09]} 35. Qd4 {[%clk 0:00:37.2]} 35...
Bb7 {[%clk 0:00:08.8]} 36. Qxg7+ {[%clk 0:00:31.1]} 36... Kxg7 {[%clk
0:00:10.7]} 37. d7 {[%clk 0:00:29.9]} 37... Rd8 {[%clk 0:00:11.4]} 38. Ne5
{[%clk 0:00:30.3]} 38... Kf8 {[%clk 0:00:11.9]} 39. f4 {[%clk 0:00:31.6]} 39...
Ke7 {[%clk 0:00:13]} 40. Kf2 {[%clk 0:00:32.9]} 40... Ba6 {[%clk 0:00:13.5]} 41.
a4 {[%clk 0:00:32.4]} 41... Bb7 {[%clk 0:00:13.8]} 42. Ke3 {[%clk 0:00:33.4]}
42... Bxg2 {[%clk 0:00:14.1]} 43. Rd2 {[%clk 0:00:29.7]} 43... Bb7 {[%clk
0:00:14]} 44. Rh2 {[%clk 0:00:30.5]} 44... Kd6 {[%clk 0:00:14.8]} 45. Nf7+
{[%clk 0:00:30.3]} 45... Kxd7 {[%clk 0:00:15.7]} 46. Nxd8 {[%clk 0:00:32.2]}
46... Kxd8 {[%clk 0:00:17.6]} 47. Rxh7 {[%clk 0:00:33.9]} 1-0

[Event "*** Titled Tuesday Blitz"]
[Site "Chess.com"]
[Date "2018.12.04"]
[Round "7"]
[White "DSCC1"]
[Black "nurmiTV"]
[Result "0-1"]
[WhiteElo "2167"]
[BlackElo "2458"]
[TimeControl "180+2"]
[EndTime "14:38:27 PST"]
[Termination "nurmiTV won by resignation"]

1. Nf3 {[%clk 0:03:01.9]} 1... b6 {[%clk 0:02:59]} 2. g3 {[%clk 0:03:01.6]} 2...
Bb7 {[%clk 0:03:00]} 3. Bg2 {[%clk 0:03:03.3]} 3... c5 {[%clk 0:03:00.4]} 4. O-O
{[%clk 0:03:03.6]} 4... Nf6 {[%clk 0:03:01]} 5. c4 {[%clk 0:03:04.9]} 5... g6
{[%clk 0:03:01.4]} 6. b3 {[%clk 0:03:05.6]} 6... Bg7 {[%clk 0:03:01.6]} 7. Bb2
{[%clk 0:03:07.5]} 7... O-O {[%clk 0:03:01.8]} 8. Nc3 {[%clk 0:03:04.6]} 8... d5
{[%clk 0:03:01.6]} 9. Nxd5 {[%clk 0:03:03.9]} 9... Nxd5 {[%clk 0:03:01.4]} 10.
Bxg7 {[%clk 0:03:05.1]} 10... Kxg7 {[%clk 0:03:01.1]} 11. cxd5 {[%clk
0:03:06.2]} 11... Bxd5 {[%clk 0:03:00.2]} 12. d4 {[%clk 0:02:59.8]} 12... Nd7
{[%clk 0:02:42]} 13. Rc1 {[%clk 0:02:47.1]} 13... Rc8 {[%clk 0:02:36.2]} 14.
dxc5 {[%clk 0:02:47.8]} 14... Nxc5 {[%clk 0:02:35.6]} 15. Qd4+ {[%clk
0:02:40.2]} 15... Kg8 {[%clk 0:02:34.7]} 16. b4 {[%clk 0:02:13]} 16... Ne6
{[%clk 0:01:55.9]} 17. Rxc8 {[%clk 0:02:13.2]} 17... Nxd4 {[%clk 0:01:55.1]} 18.
Rxd8 {[%clk 0:02:14]} 18... Nxe2+ {[%clk 0:01:55.4]} 19. Kh1 {[%clk 0:02:14.3]}
19... Rxd8 {[%clk 0:01:56.6]} 20. Rd1 {[%clk 0:02:05.3]} 20... Rd6 {[%clk
0:01:47.7]} 21. Re1 {[%clk 0:01:36]} 21... Re6 {[%clk 0:01:37.2]} 22. Rd1 {[%clk
0:01:04.6]} 22... Rd6 {[%clk 0:01:06.5]} 23. Re1 {[%clk 0:00:59.4]} 23... Bxf3
{[%clk 0:01:06.8]} 24. Bxf3 {[%clk 0:00:58.2]} 24... Nd4 {[%clk 0:01:08.3]} 25.
Kg2 {[%clk 0:00:46.4]} 25... Kf8 {[%clk 0:01:06.1]} 26. Bd1 {[%clk 0:00:38.1]}
26... f6 {[%clk 0:01:05]} 27. h4 {[%clk 0:00:38.2]} 27... e5 {[%clk 0:01:05.2]}
28. h5 {[%clk 0:00:39.2]} 28... Nc6 {[%clk 0:01:03.8]} 29. hxg6 {[%clk
0:00:38.8]} 29... hxg6 {[%clk 0:01:05.7]} 30. a3 {[%clk 0:00:33.6]} 30... Kg7
{[%clk 0:00:58.5]} 31. Bf3 {[%clk 0:00:31.5]} 31... Nd4 {[%clk 0:00:57.9]} 32.
Rc1 {[%clk 0:00:32.5]} 32... Rd7 {[%clk 0:00:57.6]} 33. Bd1 {[%clk 0:00:25.1]}
33... f5 {[%clk 0:00:57.5]} 34. Ba4 {[%clk 0:00:25.7]} 34... Re7 {[%clk
0:00:52.4]} 35. Rc8 {[%clk 0:00:24.2]} 35... g5 {[%clk 0:00:45]} 36. Bc6 {[%clk
0:00:24.2]} 36... g4 {[%clk 0:00:43.7]} 37. b5 {[%clk 0:00:23.9]} 37... e4
{[%clk 0:00:41.1]} 38. Rd8 {[%clk 0:00:15.3]} 38... Nf3 {[%clk 0:00:41.5]} 39.
Rd1 {[%clk 0:00:08.2]} 39... Kf6 {[%clk 0:00:40.4]} 40. Rd6+ {[%clk 0:00:07.5]}
40... Ke5 {[%clk 0:00:39.6]} 41. Rd5+ {[%clk 0:00:08.4]} 41... Ke6 {[%clk
0:00:40.7]} 42. Rd1 {[%clk 0:00:08.2]} 42... Rh7 {[%clk 0:00:40.9]} 43. Rh1
{[%clk 0:00:08.1]} 43... Rxh1 {[%clk 0:00:39.3]} 44. Kxh1 {[%clk 0:00:09.1]}
44... Nd4 {[%clk 0:00:40.9]} 45. Be8 {[%clk 0:00:08.8]} 45... Nc2 {[%clk
0:00:28.2]} 46. a4 {[%clk 0:00:07.5]} 46... Ne1 {[%clk 0:00:28.9]} 47. Kg1
{[%clk 0:00:07.8]} 47... Nd3 {[%clk 0:00:29.6]} 48. Kf1 {[%clk 0:00:08.7]} 48...
Nc5 {[%clk 0:00:30.3]} 49. Ke2 {[%clk 0:00:09.1]} 49... Nxa4 {[%clk 0:00:31.2]}
50. Ke3 {[%clk 0:00:10]} 50... Ke5 {[%clk 0:00:31.9]} 0-1

[Event "*** Titled Tuesday Blitz"]
[Site "Chess.com"]
[Date "2018.12.04"]
[Round "7"]
[White "biostatistician"]
[Black "GukeshDommaraju"]
[Result "1-0"]
[WhiteElo "2481"]
[BlackElo "2678"]
[TimeControl "180+2"]
[EndTime "14:38:28 PST"]
[Termination "biostatistician won by resignation"]

1. d4 {[%clk 0:03:01.8]} 1... Nf6 {[%clk 0:02:58.3]} 2. Nf3 {[%clk 0:03:03.7]}
2... g6 {[%clk 0:02:52.2]} 3. c4 {[%clk 0:03:04.8]} 3... Bg7 {[%clk 0:02:52.8]}
4. Nc3 {[%clk 0:03:06.7]} 4... O-O {[%clk 0:02:53.1]} 5. e4 {[%clk 0:03:08.3]}
5... d6 {[%clk 0:02:54.1]} 6. Be2 {[%clk 0:03:10.2]} 6... e5 {[%clk 0:02:53.2]}
7. dxe5 {[%clk 0:03:12.1]} 7... dxe5 {[%clk 0:02:53.9]} 8. Qxd8 {[%clk 0:03:14]}
8... Rxd8 {[%clk 0:02:54.1]} 9. Bg5 {[%clk 0:03:15.9]} 9... c6 {[%clk
0:02:51.8]} 10. Nxe5 {[%clk 0:03:16.9]} 10... Re8 {[%clk 0:02:51.9]} 11. O-O-O
{[%clk 0:03:18.8]} 11... Na6 {[%clk 0:02:36.2]} 12. Rd6 {[%clk 0:03:19.3]} 12...
Nxe4 {[%clk 0:02:29.6]} 13. Nxe4 {[%clk 0:03:21.2]} 13... Bxe5 {[%clk
0:02:30.2]} 14. Nf6+ {[%clk 0:03:22.4]} 14... Bxf6 {[%clk 0:02:30.9]} 15. Bxf6
{[%clk 0:03:24.3]} 15... Nc5 {[%clk 0:02:30.3]} 16. Bf3 {[%clk 0:03:25.7]} 16...
Bf5 {[%clk 0:02:29.1]} 17. Rhd1 {[%clk 0:03:23.9]} 17... Be4 {[%clk 0:02:23.5]}
18. b4 {[%clk 0:02:45.6]} 18... Bxf3 {[%clk 0:02:22.6]} 19. gxf3 {[%clk
0:02:47.1]} 19... Ne6 {[%clk 0:02:21.5]} 20. Kc2 {[%clk 0:02:44]} 20... a5
{[%clk 0:02:21.6]} 21. b5 {[%clk 0:02:38.1]} 21... cxb5 {[%clk 0:02:22]} 22.
cxb5 {[%clk 0:02:40]} 22... Rac8+ {[%clk 0:02:23]} 23. Kb2 {[%clk 0:02:40.5]}
23... Rc5 {[%clk 0:02:23.9]} 24. a4 {[%clk 0:02:41.6]} 24... Rf5 {[%clk
0:02:24.8]} 25. Bc3 {[%clk 0:02:26.3]} 25... Rxf3 {[%clk 0:02:25.6]} 26. R1d2
{[%clk 0:02:27.5]} 26... Nc5 {[%clk 0:01:40.3]} 27. R6d4 {[%clk 0:02:26.2]}
27... f5 {[%clk 0:01:24.2]} 28. Rc4 {[%clk 0:01:52]} 28... Ne4 {[%clk
0:01:21.3]} 29. Re2 {[%clk 0:01:51.1]} 29... Rxf2 {[%clk 0:01:13.7]} 30. Rxf2
{[%clk 0:01:51.5]} 30... Nxf2 {[%clk 0:01:15.6]} 31. Bxa5 {[%clk 0:01:53.1]}
31... Ne4 {[%clk 0:01:03.7]} 32. Rc7 {[%clk 0:01:50.2]} 32... f4 {[%clk
0:01:04]} 33. Rxb7 {[%clk 0:01:48.8]} 33... f3 {[%clk 0:01:02.9]} 34. Bb6 {[%clk
0:01:50.2]} 34... Nd6 {[%clk 0:00:40.6]} 35. Rc7 {[%clk 0:01:49.4]} 35... Re4
{[%clk 0:00:40.9]} 36. Kb3 {[%clk 0:01:39.1]} 36... Re2 {[%clk 0:00:35]} 37. Rd7
{[%clk 0:01:31.3]} 37... Re6 {[%clk 0:00:17.3]} 38. Kb4 {[%clk 0:01:18.8]} 38...
Ne4 {[%clk 0:00:13.6]} 39. a5 {[%clk 0:01:12.7]} 39... f2 {[%clk 0:00:10.7]} 40.
Bxf2 {[%clk 0:01:12.4]} 40... Nxf2 {[%clk 0:00:12.6]} 41. b6 {[%clk 0:01:12.8]}
41... Re4+ {[%clk 0:00:12]} 42. Kb5 {[%clk 0:01:12.4]} 42... Re5+ {[%clk
0:00:13.2]} 43. Kb4 {[%clk 0:01:11.4]} 43... Re4+ {[%clk 0:00:13]} 44. Kc5
{[%clk 0:01:11.4]} 44... Re5+ {[%clk 0:00:13.3]} 45. Rd5 {[%clk 0:01:13]} 45...
Ne4+ {[%clk 0:00:11.8]} 46. Kd4 {[%clk 0:01:11.8]} 46... Re6 {[%clk 0:00:11.4]}
47. b7 {[%clk 0:01:10.5]} 47... Re8 {[%clk 0:00:11.4]} 48. a6 {[%clk 0:01:11.9]}
48... Nf6 {[%clk 0:00:11.8]} 49. a7 {[%clk 0:01:09.8]} 49... Nxd5 {[%clk
0:00:12.2]} 50. Kxd5 {[%clk 0:01:11.7]} 1-0

[Event "*** Titled Tuesday Blitz"]
[Site "Chess.com"]
[Date "2018.12.04"]
[Round "7"]
[White "NemtsevIgor"]
[Black "LuisFSiles"]
[Result "0-1"]
[WhiteElo "2328"]
[BlackElo "2226"]
[TimeControl "180+2"]
[EndTime "14:38:34 PST"]
[Termination "LuisFSiles won by resignation"]

1. d4 {[%clk 0:03:01.9]} 1... Nf6 {[%clk 0:03:00.4]} 2. Bf4 {[%clk 0:03:01.9]}
2... g6 {[%clk 0:02:57.1]} 3. Nf3 {[%clk 0:03:02.1]} 3... Bg7 {[%clk 0:02:57.1]}
4. e3 {[%clk 0:03:02.5]} 4... O-O {[%clk 0:02:53.8]} 5. Be2 {[%clk 0:03:02.7]}
5... d6 {[%clk 0:02:43.8]} 6. O-O {[%clk 0:03:02.3]} 6... b6 {[%clk 0:02:40.9]}
7. a4 {[%clk 0:03:02]} 7... a6 {[%clk 0:02:40.5]} 8. a5 {[%clk 0:03:02.2]} 8...
b5 {[%clk 0:02:39.5]} 9. c4 {[%clk 0:03:03.4]} 9... bxc4 {[%clk 0:02:37.1]} 10.
Bxc4 {[%clk 0:03:03.9]} 10... Bb7 {[%clk 0:02:37.1]} 11. Nc3 {[%clk 0:03:00.7]}
11... Nbd7 {[%clk 0:02:24.1]} 12. h3 {[%clk 0:02:38]} 12... e6 {[%clk 0:02:24]}
13. Qe2 {[%clk 0:02:33.1]} 13... Qe7 {[%clk 0:02:15.5]} 14. Bg3 {[%clk
0:02:18.6]} 14... Nd5 {[%clk 0:01:56.6]} 15. Nxd5 {[%clk 0:02:13.9]} 15... exd5
{[%clk 0:01:57.6]} 16. Bd3 {[%clk 0:02:10.1]} 16... Nf6 {[%clk 0:01:58.3]} 17.
Bh4 {[%clk 0:02:05.5]} 17... Qd7 {[%clk 0:01:38.8]} 18. Bxf6 {[%clk 0:02:05.7]}
18... Bxf6 {[%clk 0:01:39.7]} 19. Rfc1 {[%clk 0:02:05.2]} 19... Rfc8 {[%clk
0:01:38.5]} 20. Nh2 {[%clk 0:01:49.5]} 20... c5 {[%clk 0:01:36.8]} 21. Nf3
{[%clk 0:01:37.8]} 21... c4 {[%clk 0:01:35.6]} 22. Bc2 {[%clk 0:01:38.2]} 22...
Bc6 {[%clk 0:01:34.6]} 23. Nh2 {[%clk 0:01:33.8]} 23... Rab8 {[%clk 0:01:34.4]}
24. Ra2 {[%clk 0:01:29.2]} 24... Rb4 {[%clk 0:01:32.1]} 25. Ng4 {[%clk
0:01:29.1]} 25... Bg7 {[%clk 0:01:32.9]} 26. Qf3 {[%clk 0:01:30.1]} 26... f5
{[%clk 0:01:30]} 27. Nh2 {[%clk 0:01:28.8]} 27... Rcb8 {[%clk 0:01:30.7]} 28. g4
{[%clk 0:01:22.6]} 28... fxg4 {[%clk 0:01:22.9]} 29. Nxg4 {[%clk 0:01:17.5]}
29... Rxb2 {[%clk 0:01:15.9]} 30. Rxb2 {[%clk 0:01:18]} 30... Rxb2 {[%clk
0:01:17.8]} 31. h4 {[%clk 0:01:09.7]} 31... Rb8 {[%clk 0:01:13.7]} 32. h5 {[%clk
0:01:07.8]} 32... Rf8 {[%clk 0:01:13.3]} 33. Qh3 {[%clk 0:01:05.2]} 33... Qf7
{[%clk 0:01:06.4]} 34. hxg6 {[%clk 0:01:02.9]} 34... hxg6 {[%clk 0:01:08.3]} 35.
Qg3 {[%clk 0:00:42.9]} 35... Bd7 {[%clk 0:00:55.9]} 36. Nh2 {[%clk 0:00:43.8]}
36... Bf5 {[%clk 0:00:51.4]} 37. f4 {[%clk 0:00:42.1]} 37... Bxc2 {[%clk
0:00:49.5]} 38. Rxc2 {[%clk 0:00:43.1]} 38... Rb8 {[%clk 0:00:48.4]} 39. Ng4
{[%clk 0:00:42.7]} 39... Rb1+ {[%clk 0:00:45.8]} 40. Kg2 {[%clk 0:00:43.9]}
40... Qf5 {[%clk 0:00:47.2]} 41. Rf2 {[%clk 0:00:36.6]} 41... c3 {[%clk
0:00:41.1]} 42. Qh4 {[%clk 0:00:26.5]} 42... Kf7 {[%clk 0:00:21.5]} 43. Nh6+
{[%clk 0:00:21.3]} 43... Bxh6 {[%clk 0:00:21.8]} 44. Qxh6 {[%clk 0:00:23.2]}
44... Qg4+ {[%clk 0:00:22.9]} 45. Kh2 {[%clk 0:00:21.6]} 45... Qg1+ {[%clk
0:00:20.2]} 46. Kh3 {[%clk 0:00:22.9]} 46... Qh1+ {[%clk 0:00:20.4]} 47. Kg3
{[%clk 0:00:20.8]} 47... Qxh6 {[%clk 0:00:21]} 0-1

[Event "*** Titled Tuesday Blitz"]
[Site "Chess.com"]
[Date "2018.12.04"]
[Round "7"]
[White "penguingm1"]
[Black "David_Paravyan"]
[Result "1-0"]
[WhiteElo "2790"]
[BlackElo "2827"]
[TimeControl "180+2"]
[EndTime "14:38:40 PST"]
[Termination "penguingm1 won by resignation"]

1. d4 {[%clk 0:03:01.9]} 1... Nf6 {[%clk 0:03:00.3]} 2. c4 {[%clk 0:03:03.2]}
2... g6 {[%clk 0:03:01.7]} 3. f3 {[%clk 0:03:03.9]} 3... e6 {[%clk 0:03:01.1]}
4. e4 {[%clk 0:03:02.5]} 4... c5 {[%clk 0:03:02.6]} 5. d5 {[%clk 0:03:03.4]}
5... d6 {[%clk 0:03:03.9]} 6. Nc3 {[%clk 0:03:04.1]} 6... Bg7 {[%clk 0:03:05.1]}
7. Nge2 {[%clk 0:03:05.5]} 7... exd5 {[%clk 0:03:05.5]} 8. cxd5 {[%clk
0:03:07.4]} 8... O-O {[%clk 0:03:03.4]} 9. Ng3 {[%clk 0:03:08.6]} 9... a6 {[%clk
0:03:03.8]} 10. a4 {[%clk 0:03:09.7]} 10... Nbd7 {[%clk 0:03:05]} 11. Be2 {[%clk
0:03:09.9]} 11... Re8 {[%clk 0:03:06.5]} 12. O-O {[%clk 0:03:10.6]} 12... Rb8
{[%clk 0:03:08.1]} 13. Bg5 {[%clk 0:03:11.5]} 13... h6 {[%clk 0:02:56.3]} 14.
Be3 {[%clk 0:03:12.6]} 14... h5 {[%clk 0:02:41]} 15. Bg5 {[%clk 0:03:13.6]}
15... Qc7 {[%clk 0:02:37.7]} 16. Qd2 {[%clk 0:03:14.4]} 16... c4 {[%clk
0:02:32.7]} 17. Rac1 {[%clk 0:03:08.5]} 17... b5 {[%clk 0:02:30.8]} 18. axb5
{[%clk 0:03:09.6]} 18... axb5 {[%clk 0:02:32.7]} 19. b4 {[%clk 0:03:11.2]} 19...
Nh7 {[%clk 0:02:18.8]} 20. Be3 {[%clk 0:03:09.5]} 20... Ne5 {[%clk 0:02:10.4]}
21. f4 {[%clk 0:02:58.5]} 21... Ng4 {[%clk 0:02:09.4]} 22. Bd4 {[%clk
0:02:59.2]} 22... Bd7 {[%clk 0:01:57.9]} 23. h3 {[%clk 0:02:51.2]} 23... Bxd4+
{[%clk 0:01:47.3]} 24. Qxd4 {[%clk 0:02:52.2]} 24... Ngf6 {[%clk 0:01:48.8]} 25.
Ra1 {[%clk 0:02:40]} 25... Qb6 {[%clk 0:01:33.2]} 26. Qxb6 {[%clk 0:02:37.5]}
26... Rxb6 {[%clk 0:01:35.1]} 27. Bf3 {[%clk 0:02:28.3]} 27... h4 {[%clk
0:01:19]} 28. Nge2 {[%clk 0:02:16.7]} 28... g5 {[%clk 0:01:18.9]} 29. f5 {[%clk
0:02:08]} 29... g4 {[%clk 0:00:55]} 30. hxg4 {[%clk 0:02:08]} 30... Ng5 {[%clk
0:00:56.2]} 31. Ra7 {[%clk 0:01:51.3]} 31... h3 {[%clk 0:00:56.6]} 32. gxh3
{[%clk 0:01:38]} 32... Nxh3+ {[%clk 0:00:56.1]} 33. Kg2 {[%clk 0:01:38.9]} 33...
Ng5 {[%clk 0:00:57.2]} 34. Ng3 {[%clk 0:01:40.1]} 34... Kg7 {[%clk 0:00:50.9]}
35. Rfa1 {[%clk 0:01:39]} 35... Rh8 {[%clk 0:00:40.5]} 36. R1a6 {[%clk
0:01:39.1]} 36... Rxa6 {[%clk 0:00:41.3]} 37. Rxa6 {[%clk 0:01:41]} 37... Ne8
{[%clk 0:00:38.4]} 38. Nh5+ {[%clk 0:01:40.4]} 38... Kf8 {[%clk 0:00:36.8]} 39.
Ra7 {[%clk 0:01:40.5]} 39... Ke7 {[%clk 0:00:31.4]} 40. Nxb5 {[%clk 0:01:21.3]}
40... Rg8 {[%clk 0:00:18.2]} 41. f6+ {[%clk 0:01:13.4]} 41... Nxf6 {[%clk
0:00:19]} 42. Nxf6 {[%clk 0:01:12.9]} 42... Kxf6 {[%clk 0:00:20.9]} 43. Rxd7
{[%clk 0:01:13.6]} 43... Rb8 {[%clk 0:00:19.2]} 44. Nxd6 {[%clk 0:01:14.1]}
44... Rxb4 {[%clk 0:00:18.5]} 45. e5+ {[%clk 0:01:04.6]} 45... Kxe5 {[%clk
0:00:05.7]} 46. Nxf7+ {[%clk 0:01:05.6]} 46... Nxf7 {[%clk 0:00:07]} 47. Rxf7
{[%clk 0:01:07]} 47... c3 {[%clk 0:00:06.3]} 48. Rc7 {[%clk 0:01:05.6]} 48...
Kd4 {[%clk 0:00:07.3]} 49. d6 {[%clk 0:01:06]} 49... Kd3 {[%clk 0:00:08.4]} 50.
Kf2 {[%clk 0:00:53.3]} 50... c2 {[%clk 0:00:03.8]} 51. d7 {[%clk 0:00:50]} 51...
Rd4 {[%clk 0:00:04.7]} 52. Ke1 {[%clk 0:00:46.7]} 52... Rd6 {[%clk 0:00:03.9]}
53. Be2+ {[%clk 0:00:47.2]} 1-0